bitfinex/quotes_ETHUSD_20250622
["timestamp","ask_amount","ask_price","bid_price","bid_amount"]
[1750554134051,10.0,2289.0,2288.9,4.36888348]
[1750554134255,12.08299841,2289.0,2288.7,4.36918496]
[1750554134466,1.11938194,2289.0,2288.9,4.36891083]
[1750554134677,1.11938194,2289.0,2288.9,15.69501083]
[1750554135323,0.62965234,2289.0,2288.9,15.14501083]
[1750554135491,0.62965234,2289.0,2288.9,5.14501083]
[1750554135897,3.055,2290.4,2288.9,5.14501083]
[1750554135898,3.055,2290.4,2288.9,15.14501083]
[1750554136047,2.8845,2290.5,2290.4,4.36604959]
[1750554136614,30.0,2290.4,2289.7,0.7761]
[1750554136791,7.653,2290.3,2290.2,4.36643087]
[1750554137087,7.653,2290.3,2289.0,9.59753057]
[1750554137088,10.0,2290.2,2289.0,9.59753057]
[1750554137378,9.735,2290.1,2289.9,4.36688862]
[1750554137544,30.0,2290.0,2289.8,4.36701216]
[1750554137743,2.083,2289.9,2289.7,4.36737442]
[1750554137944,2.083,2289.9,2289.8,4.36719364]
[1750554138374,9.739,2289.9,2289.8,4.36719364]
[1750554138682,9.739,2289.9,2289.7,4.36735335]
[1750554138879,9.739,2289.9,2289.8,4.36719364]
[1750554139272,9.739,2289.9,2289.7,4.36734597]
[1750554139472,10.0,2289.8,2289.7,4.36734597]
[1750554139996,0.9739,2289.9,2289.7,4.36734597]
[1750554140162,9.739,2289.8,2289.6,4.36755177]
[1750554140358,12.083,2289.7,2289.6,4.36757512]
[1750554141098,2.083,2289.7,2289.6,4.36757512]
[1750554143093,2.083,2289.7,2289.3,0.7761]
[1750554143094,22.083,2289.7,2289.3,4.36800336]
[1750554143299,17.651,2289.6,2289.3,4.36797693]
[1750554143596,17.651,2289.6,2288.9,0.8059]
[1750554143597,17.651,2289.6,2289.4,4.36794622]
[1750554143798,17.651,2289.6,2289.5,4.36776588]
[1750554144200,17.651,2289.6,2289.3,4.367994]
[1750554144396,17.651,2289.6,2289.2,4.36832886]
[1750554144561,10.0,2289.4,2289.2,4.36832886]
[1750554144762,7.649,2289.3,2289.2,4.36832886]
[1750554145000,17.649,2289.3,2289.2,4.36832886]
[1750554145185,17.649,2289.3,2288.6,5.17024895]
[1750554145414,2.084,2289.2,2289.1,4.36852911]
[1750554146966,2.084,2289.2,2289.0,4.36869598]
[1750554147397,2.084,2289.2,2289.1,4.36852911]
[1750554147595,12.084,2289.2,2288.7,4.36913985]
[1750554147776,15.93042672,2289.2,2288.6,0.8008]
[1750554148106,7.644,2289.3,2289.1,4.36851727]
[1750554148303,2.084,2289.2,2289.1,4.36851727]
[1750554148504,0.55,2289.0,2288.3,4.37005637]
[1750554148723,10.0,2288.8,2288.1,0.8008]
[1750554148869,2.084,2288.7,2288.4,4.36986137]
[1750554149070,2.084,2288.7,2288.3,4.36990757]
[1750554149272,7.643,2288.6,2288.4,4.36974682]
[1750554149570,7.643,2288.6,2288.5,4.36967445]
[1750554149770,0.7609,2289.4,2288.6,4.36948352]
[1750554150001,9.41187849,2289.8,2289.2,4.36833828]
[1750554150002,2.084,2289.3,2289.2,4.36833828]
[1750554150200,2.084,2289.4,2289.2,4.36833828]
[1750554150429,2.084,2289.4,2289.3,4.36804872]
[1750554150607,2.084,2289.4,2289.2,4.36817072]
[1750554150817,9.731,2289.4,2289.3,4.36814746]
[1750554151574,30.0,2290.0,2289.9,4.36700292]
[1750554151797,9.734,2290.0,2289.9,4.36700292]
[1750554152119,39.733,2290.0,2289.8,4.36719364]
[1750554152431,10.0,2289.9,2289.8,4.36719364]
[1750554152791,0.7609,2290.1,2289.9,4.36690719]
[1750554152993,10.0,2289.9,2289.8,4.36719364]
[1750554153892,10.0,2289.9,2289.6,4.36754948]
[1750554154092,10.0,2289.9,2289.8,4.36719364]
[1750554154445,10.0,2289.9,2289.3,5.24176561]
[1750554154446,2.04929,2289.9,2289.7,4.3672891]
[1750554154605,11.78029,2289.9,2289.2,0.7813]
[1750554154808,11.78029,2289.9,2289.8,4.36719364]
[1750554155023,11.78029,2289.9,2289.7,4.36728889]
[1750554155327,11.78029,2289.9,2289.8,4.36719364]
[1750554155699,9.731,2289.9,2289.8,4.36719364]
[1750554155900,10.09509348,2289.9,2289.8,4.36719364]
[1750554156825,0.36409348,2289.9,2289.8,4.36719364]
[1750554157033,0.36409348,2289.9,2289.8,5.1921622]
[1750554157239,0.36409348,2289.9,2289.8,15.7421622]
[1750554157398,2.084,2290.7,2290.6,4.36566838]
[1750554157604,2.084,2290.7,2290.6,5.14696838]
[1750554157831,40.491,2291.4,2291.3,4.36433465]
[1750554158013,2.084,2291.4,2291.3,4.36433465]
[1750554158332,2.084,2292.0,2291.9,4.36319211]
[1750554158495,12.574,2292.3,2292.2,4.36262106]
[1750554158700,10.0,2292.2,2291.5,0.7813]
[1750554158932,10.0,2292.2,2292.1,4.36281139]
[1750554159131,20.23,2292.3,2292.2,4.36262106]
[1750554159809,12.574,2292.3,2292.2,4.36262106]
[1750554160010,12.574,2292.3,2291.0,7.658]
[1750554160011,44.5975,2292.3,2291.0,7.658]
[1750554160310,44.5975,2292.3,2292.1,4.36281139]
[1750554160311,47.658,2292.2,2292.1,4.36281139]
[1750554160933,10.49,2292.3,2292.0,4.36299938]
[1750554161097,2.163,2292.2,2292.1,4.36281139]
[1750554162229,2.163,2292.2,2292.1,4.40643679]
[1750554162429,2.163,2292.2,2292.1,4.36281139]
[1750554163135,10.49,2292.3,2292.2,5.18972106]
[1750554163430,30.0,2292.4,2292.3,4.36241859]
[1750554163636,12.163,2292.5,2292.4,4.36224044]
[1750554163939,14.1463,2292.5,2292.3,4.36227764]
[1750554164243,10.0,2292.3,2292.1,4.36266415]
[1750554164398,9.83,2292.2,2292.1,4.36281139]
[1750554165001,10.7966,2292.4,2292.1,4.36281139]
[1750554165331,19.83,2292.3,2292.2,4.36253762]
[1750554165632,22.09099,2292.3,2292.1,4.36277113]
[1750554165938,22.09099,2292.3,2292.2,4.36262106]
[1750554166136,22.09099,2292.3,2292.1,4.36274915]
[1750554166435,22.09099,2292.3,2292.2,4.36262106]
[1750554166932,22.09099,2292.3,2292.1,4.36268943]
[1750554167136,22.09099,2292.3,2292.2,4.36262106]
[1750554167701,2.26099,2292.3,2292.2,4.36262106]
[1750554168029,9.82,2292.3,2292.2,4.36262106]
[1750554168199,19.82,2292.3,2292.2,4.36262106]
[1750554168398,0.7966,2292.7,2292.6,4.36185989]
[1750554168601,12.9586,2292.7,2292.6,4.36185989]
[1750554168801,12.9586,2292.7,2292.5,4.36196082]
[1750554168802,20.6156,2292.7,2292.5,4.36196082]
[1750554169110,10.0,2292.3,2292.0,4.36285528]
[1750554169304,10.0,2292.5,2292.0,4.36285528]
[1750554169305,9.815,2292.2,2292.0,4.36285528]
[1750554169623,9.815,2292.2,2292.1,4.36281139]
[1750554170138,10.0,2292.6,2292.0,4.36297321]
[1750554170341,10.0,2292.4,2292.2,4.3625921]
[1750554170535,7.65,2292.3,2292.2,4.3625921]
[1750554170834,7.657,2292.5,2292.4,4.36211676]
[1750554171061,9.819,2292.5,2292.4,4.36211676]
[1750554173624,40.0,2291.7,2290.9,0.8154]
[1750554173807,30.0,2291.4,2291.0,4.36480251]
[1750554174010,17.681,2291.3,2291.1,4.36470217]
[1750554174326,17.681,2291.3,2291.0,4.36483503]
[1750554174532,17.681,2291.3,2290.8,4.36527486]
[1750554174743,23.81354375,2291.3,2290.7,4.36537608]
[1750554174945,23.81354375,2291.3,2290.4,0.8154]
[1750554174946,0.8189,2291.2,2290.6,4.36562644]
[1750554175249,10.0,2290.8,2290.0,0.8154]
[1750554175415,30.0,2290.6,2290.4,4.36591802]
[1750554175613,2.162,2290.5,2290.2,4.36634264]
[1750554175811,7.68,2290.4,2290.3,4.36619201]
[1750554176551,10.0,2290.6,2290.5,4.36585898]
[1750554176709,9.835,2290.6,2290.5,4.36585898]
[1750554177427,20.481,2290.7,2290.6,4.36566838]
[1750554177610,30.318,2290.7,2290.6,4.36566838]
[1750554178124,20.318,2290.7,2290.6,4.36566838]
[1750554178440,12.643,2290.7,2290.6,5.23882112]
[1750554178626,12.643,2290.7,2290.6,4.36566838]
[1750554180663,12.643,2290.7,2290.6,5.17986838]
[1750554181111,12.643,2290.7,2290.6,4.36566838]
[1750554181957,10.484,2291.8,2291.7,4.36357289]
[1750554182156,12.646,2291.8,2291.7,4.36357289]
[1750554182351,0.8182,2292.5,2292.2,4.36262106]
[1750554182524,13.19851909,2292.3,2292.2,4.36262106]
[1750554182943,3.19851909,2292.3,2292.2,4.36262106]
[1750554183148,10.87951909,2292.3,2292.2,4.36262106]
[1750554183610,50.87951909,2292.3,2291.7,5.4742]
[1750554183818,10.0,2292.1,2291.3,0.8142]
[1750554184162,7.679,2292.0,2291.9,4.36319211]
[1750554184309,1.03651909,2292.3,2292.2,4.36262106]
[1750554184508,1.03651909,2292.3,2291.8,4.36325667]
[1750554184509,10.0,2292.1,2291.8,4.36325667]
[1750554184860,1.03651909,2292.3,2292.2,4.36262106]
[1750554185026,40.0,2292.2,2291.5,4.66]
[1750554185232,40.0,2292.0,2291.9,4.36306945]
[1750554185425,17.682,2292.1,2292.0,4.36300174]
[1750554185639,10.0,2292.0,2291.6,4.3637633]
[1750554185867,7.683,2291.9,2291.7,4.36357289]
[1750554186062,2.162,2291.8,2291.7,4.36357289]
[1750554186280,9.846,2291.8,2291.7,4.36357289]
[1750554186952,2.162,2291.8,2291.7,4.36357289]
[1750554188136,30.0,2291.7,2291.0,0.8113]
[1750554188334,30.55,2291.5,2290.6,0.8113]
[1750554188644,32.55734887,2291.6,2291.3,4.36433465]
[1750554188645,7.681,2291.4,2291.3,4.36433465]
[1750554189233,37.681,2291.4,2290.7,4.36546204]
[1750554189547,2.9205,2291.3,2291.2,4.36452513]
[1750554189745,10.6035,2291.3,2291.2,4.36452513]
[1750554189930,9.845,2291.3,2291.2,4.36452513]
[1750554196560,10.0,2291.5,2291.4,4.36397267]
[1750554196761,22.8692,2291.5,2291.4,4.36397267]
[1750554197598,19.821,2291.5,2291.4,4.36397267]
[1750554198198,10.482,2291.6,2291.5,4.36395374]
[1750554198501,10.482,2291.6,2291.5,9.02395374]
[1750554198698,12.652,2291.6,2291.5,9.02395374]
[1750554198994,20.294,2291.6,2291.5,9.02395374]
[1750554199502,12.652,2291.6,2291.5,9.02395374]
[1750554200205,12.652,2291.6,2291.5,11.15714638]
[1750554200359,12.652,2291.6,2291.5,9.81835374]
[1750554203097,10.482,2291.6,2291.5,9.81835374]
[1750554203309,1.03651909,2292.3,2292.2,4.36262106]
[1750554203612,3.20651909,2292.3,2292.2,4.36262106]
[1750554203970,3.20651909,2292.3,2292.2,9.02262106]
[1750554204197,1.03651909,2292.3,2292.2,5.78060074]
[1750554204400,10.482,2292.6,2292.5,4.36205016]
[1750554204574,12.652,2292.6,2292.5,4.36205016]
[1750554204780,22.652,2292.6,2292.5,4.36205016]
[1750554206095,10.0,2292.5,2292.4,4.36211876]
[1750554206289,10.482,2292.6,2292.5,4.36205016]
[1750554206496,22.652,2292.6,2292.5,4.36205016]
[1750554207298,12.652,2292.6,2292.5,4.36205016]
[1750554208611,12.652,2292.6,2292.5,6.1367034]
[1750554208813,12.652,2292.6,2292.5,4.36205016]
[1750554209693,30.0,2293.4,2293.2,4.36069081]
[1750554209902,19.783,2293.3,2292.6,4.70360936]
[1750554210104,17.613,2293.2,2292.7,4.66]
[1750554210286,17.613,2293.2,2293.1,4.36090881]
[1750554210691,17.61,2293.2,2293.1,4.36090881]
[1750554210924,10.0,2293.2,2293.1,4.36090881]
[1750554211112,17.609,2293.2,2293.1,4.36090881]
[1750554211419,12.17,2293.3,2293.2,4.36071864]
[1750554211586,2.17,2293.3,2293.2,4.36071864]
[1750554212238,2.17,2293.3,2292.3,0.8182]
[1750554212239,10.8279,2293.2,2292.3,0.8182]
[1750554212424,10.0,2292.8,2292.7,4.36166964]
[1750554212625,9.786,2292.8,2292.5,0.8182]
[1750554212928,2.169,2292.8,2292.7,4.36166964]
[1750554213092,2.169,2292.8,2291.6,0.42862067]
[1750554213093,10.0,2292.6,2291.6,0.42862067]
[1750554213294,10.0,2292.2,2291.4,0.8182]
[1750554213515,10.0,2292.0,2291.6,4.3637633]
[1750554213794,2.169,2292.1,2291.9,4.36319211]
[1750554214007,2.169,2292.1,2292.0,4.36300174]
[1750554214206,19.847,2292.1,2292.0,4.36300174]
[1750554214502,19.845,2292.1,2292.0,4.36300174]
[1750554215016,19.845,2292.1,2291.8,4.36326103]
[1750554215325,30.0,2292.0,2291.8,4.36326103]
[1750554215634,12.17,2292.1,2292.0,4.36300174]
[1750554215842,19.843,2292.1,2292.0,4.36300174]
[1750554216340,30.0,2292.0,2291.9,4.36310068]
[1750554216710,19.843,2292.1,2291.9,4.36310068]
[1750554216916,19.843,2292.1,2292.0,4.36300174]
[1750554217515,19.843,2292.1,2291.9,4.36316708]
[1750554217816,19.843,2292.1,2292.0,4.36300174]
[1750554218018,12.17,2292.1,2291.9,4.36303247]
[1750554219145,12.17,2292.1,2292.0,4.36300174]
[1750554219387,12.17,2292.1,2291.9,4.3631045]
[1750554219710,10.0,2292.0,2291.9,4.3631045]
[1750554220005,0.8073,2291.9,2291.4,0.8182]
[1750554220218,10.0,2291.9,2291.8,4.36338249]
[1750554220808,19.826,2292.1,2292.0,4.36300174]
[1750554221712,10.479,2292.4,2292.0,4.36300174]
[1750554221904,2.17,2292.9,2292.8,4.36147941]
[1750554222107,10.0,2293.0,2292.9,4.36128919]
[1750554222313,12.65,2293.5,2293.3,4.36049842]
[1750554222515,30.0,2293.4,2293.1,4.36079832]
[1750554222814,10.0,2293.3,2293.2,4.36071864]
[1750554223012,7.664,2293.4,2293.2,4.36071864]
[1750554223208,30.0,2293.3,2292.5,0.7961]
[1750554223409,0.8073,2292.7,2291.9,0.7961]
[1750554223623,24.18996014,2292.6,2292.0,4.36289957]
[1750554223830,19.828,2292.6,2291.5,4.36395374]
[1750554224029,30.0,2292.3,2292.0,4.36287505]
[1750554224226,17.671,2292.2,2292.1,4.36281139]
[1750554224428,7.67,2292.2,2292.1,4.36281139]
[1750554224827,0.8073,2292.7,2292.6,4.36185989]
[1750554225040,2.166,2292.6,2292.5,4.36205016]
[1750554225317,8.4783,2293.0,2292.9,4.36128919]
[1750554225558,10.6443,2293.0,2292.4,4.36224044]
[1750554225850,9.837,2293.0,2292.9,4.36128919]
[1750554226726,2.166,2293.0,2292.9,4.36128919]
[1750554228736,2.166,2293.0,2292.8,4.36140449]
[1750554228939,2.166,2293.0,2292.9,4.36128919]
[1750554230554,2.166,2293.0,2292.9,5.98566494]
[1750554230730,2.166,2293.0,2292.9,4.36128919]
[1750554231358,2.166,2293.0,2292.8,4.36145683]
[1750554231561,2.166,2293.0,2292.7,4.36159414]
[1750554231872,2.166,2293.0,2292.5,4.66]
[1750554232082,12.166,2293.0,2292.9,4.36128919]
[1750554232242,2.166,2293.0,2292.9,4.36128919]
[1750554232443,12.166,2293.0,2292.9,4.36128919]
[1750554232680,2.166,2293.0,2292.9,4.36128919]
[1750554233753,2.166,2293.0,2292.8,4.36137311]
[1750554233948,2.166,2293.0,2292.9,4.36128919]
[1750554234150,30.0,2292.9,2292.7,4.36149634]
[1750554234354,2.166,2293.0,2292.9,4.36128919]
[1750554235346,22.646,2293.5,2293.4,4.36033836]
[1750554235645,15.256,2293.5,2293.4,4.36033836]
[1750554235849,22.646,2293.5,2293.4,4.36033836]
[1750554236051,12.646,2293.5,2293.4,9.02033836]
[1750554236471,22.646,2293.5,2293.4,9.02033836]
[1750554236633,12.646,2293.5,2293.4,9.02033836]
[1750554237064,12.646,2293.5,2293.4,5.77799198]
[1750554237263,12.646,2293.5,2293.4,4.36033836]
[1750554237674,2.166,2293.5,2293.4,4.36033836]
[1750554238440,12.166,2293.9,2293.8,4.35957799]
[1750554238672,2.166,2293.9,2293.8,4.35957799]
[1750554238882,2.166,2293.9,2293.8,5.15527799]
[1750554239036,2.166,2293.9,2293.8,6.54277546]
[1750554239372,48.135,2294.4,2294.3,4.3586279]
[1750554239547,22.643,2294.4,2294.3,4.3586279]
[1750554239747,12.643,2294.4,2294.3,4.3586279]
[1750554239948,2.166,2294.4,2294.3,5.1550279]
[1750554240147,2.166,2294.4,2294.3,6.10640557]
[1750554240727,2.166,2294.4,2294.0,0.7964]
[1750554240836,10.0,2294.2,2293.0,4.66]
[1750554241070,0.7774,2293.9,2293.6,4.35995298]
[1750554241267,9.829,2293.8,2293.6,4.35995298]
[1750554241575,9.829,2293.8,2293.6,4.35988924]
[1750554241776,9.829,2293.8,2293.7,4.35976806]
[1750554241992,20.88964,2293.8,2293.3,4.36035829]
[1750554242139,10.0,2293.7,2293.4,4.36030309]
[1750554242341,20.88964,2293.8,2293.3,4.36046654]
[1750554242542,34.35998225,2293.6,2293.0,4.36096484]
[1750554242764,10.0,2293.3,2292.8,4.36142178]
[1750554242979,9.829,2293.2,2292.5,0.7964]
[1750554243173,10.0,2293.1,2292.8,4.36145542]
[1750554243374,10.0,2293.1,2292.7,4.36157421]
[1750554243976,10.0,2293.1,2292.8,4.36147941]
[1750554244181,10.0,2293.1,2292.2,12.82296164]
[1750554244372,10.0,2293.1,2292.6,4.36169598]
[1750554244684,10.0,2293.1,2292.9,4.36111787]
[1750554244994,10.0,2293.1,2292.3,1.36955416]
[1750554245147,14.36091676,2293.1,2292.5,4.36205016]
[1750554245497,10.0,2293.1,2292.9,4.36116277]
[1750554245655,10.0,2293.1,2292.2,5.15899343]
[1750554245886,10.0,2292.9,2292.8,4.36147941]
[1750554246091,7.663,2292.9,2292.8,4.36147941]
[1750554246515,7.663,2292.9,2292.6,4.3617812]
[1750554247013,6.52587866,2293.2,2292.6,0.87239341]
[1750554247014,2.165,2293.2,2292.6,0.87239341]
[1750554247181,7.665,2293.1,2292.6,4.36185989]
[1750554247374,7.665,2293.1,2292.5,0.7958]
[1750554247676,7.665,2293.1,2292.6,4.36185989]
[1750554247876,7.665,2293.1,2292.7,4.36157702]
[1750554248076,10.08406565,2293.1,2292.8,4.36147794]
[1750554248817,10.08406565,2293.1,2292.9,4.36126475]
[1750554249218,7.665,2293.1,2292.8,4.3614436]
[1750554249426,40.0,2293.0,2292.5,4.36188067]
[1750554249599,22.02601178,2293.1,2292.6,4.36184316]
[1750554249982,22.02601178,2293.1,2291.9,7.662]
[1750554249983,0.55,2292.8,2291.7,0.8093]
[1750554250187,10.0,2292.5,2292.3,4.36239853]
[1750554250406,10.0,2292.6,2292.5,4.36205016]
[1750554250608,2.166,2292.7,2292.5,4.36205016]
[1750554250890,2.166,2292.7,2292.6,4.36185989]
[1750554251086,2.166,2292.7,2292.5,4.84187317]
[1750554251087,2.166,2292.7,2292.3,0.8093]
[1750554251497,2.166,2292.7,2292.6,4.36185989]
[1750554251987,10.475,2293.1,2293.0,4.36109899]
[1750554252205,2.166,2293.3,2293.2,4.36071864]
[1750554252448,17.661,2293.6,2293.5,4.36011652]
[1750554252719,9.827,2293.6,2293.5,4.36011652]
[1750554253221,2.166,2293.6,2293.5,4.36011652]
[1750554253592,30.0,2293.7,2293.2,4.36069443]
[1750554253786,2.166,2293.7,2293.6,4.35986654]
[1750554254005,30.0,2293.9,2293.8,4.35956207]
[1750554254290,10.476,2294.0,2293.9,4.35938794]
[1750554254522,52.908,2294.0,2293.7,4.35965861]
[1750554254728,30.0,2293.9,2293.7,4.35961508]
[1750554254910,22.908,2294.0,2293.7,4.35961508]
[1750554254911,10.0,2293.8,2293.7,4.35961508]
[1750554255235,2.166,2293.9,2293.8,4.35957799]
[1750554255389,12.166,2293.9,2293.8,4.35957799]
[1750554257231,12.166,2293.9,2293.6,4.35992508]
[1750554257232,14.4302,2293.9,2293.3,0.8118]
[1750554257444,10.0,2293.4,2293.2,4.36061802]
[1750554257624,0.8181,2293.8,2293.2,4.36061802]
[1750554257625,19.816,2293.3,2293.2,4.36061802]
[1750554257816,12.166,2293.3,2293.2,4.36061802]
[1750554258051,10.476,2294.0,2293.3,0.8118]
[1750554258250,2.166,2294.2,2293.4,4.36033836]
[1750554258460,2.166,2294.2,2294.1,4.35900788]
[1750554258657,14.776,2294.2,2294.1,4.35900788]
[1750554258862,4.776,2294.2,2294.1,4.35900788]
[1750554259047,2.166,2294.2,2294.1,5.23082567]
[1750554259957,2.166,2294.2,2294.1,4.35900788]
[1750554260867,1.09632709,2294.6,2294.3,4.3584802]
[1750554261068,2.166,2294.5,2294.4,4.35837671]
[1750554263758,2.166,2294.5,2294.3,4.66]
[1750554263961,10.0,2294.4,2294.2,4.35881788]
[1750554264132,30.0,2294.1,2293.7,4.35967787]
[1750554264336,30.0,2293.9,2293.6,4.359845]
[1750554264789,10.0,2293.8,2293.5,4.36009076]
[1750554264950,7.665,2293.7,2293.4,4.36026794]
[1750554265294,7.665,2293.7,2293.6,4.35995814]
[1750554265438,7.665,2293.7,2293.3,4.66]
[1750554265639,7.665,2293.7,2293.6,4.35995814]
[1750554266575,2.165,2293.8,2293.7,4.35976806]
[1750554267799,2.165,2293.8,2293.3,4.66]
[1750554267952,2.165,2293.8,2293.5,4.35999752]
[1750554268397,2.165,2293.8,2293.3,4.66]
[1750554268712,2.165,2293.8,2292.8,0.8248]
[1750554268713,10.0,2293.6,2292.8,0.8248]
[1750554268922,10.0,2293.6,2293.5,4.36014824]
[1750554269213,10.0,2293.6,2293.4,4.36019692]
[1750554269417,10.0,2293.6,2292.9,5.20848]
[1750554269418,10.0,2293.6,2293.3,4.36043799]
[1750554269719,10.0,2293.6,2293.2,4.36063072]
[1750554269894,12.5215651,2293.6,2293.1,4.36088672]
[1750554270102,0.6,2293.7,2293.5,4.36014824]
[1750554270303,10.0,2293.7,2293.6,4.35995814]
[1750554271837,10.0,2293.7,2293.4,4.36027214]
[1750554271984,17.657,2293.7,2293.4,4.36023893]
[1750554272185,17.657,2293.7,2293.1,4.36090881]
[1750554272391,0.7581,2293.6,2293.2,4.36055749]
[1750554273306,30.0,2293.1,2292.9,4.3611952]
[1750554273635,9.816,2293.0,2292.9,4.3611952]
[1750554273798,9.816,2293.0,2292.5,5.18707384]
[1750554273799,19.816,2293.0,2292.7,4.36151661]
[1750554274135,19.816,2293.0,2292.5,5.4851]
[1750554274136,2.165,2293.0,2292.8,4.36147941]
[1750554274342,12.165,2293.0,2292.9,4.36128919]
[1750554274832,12.165,2293.0,2292.8,4.36139111]
[1750554275428,12.165,2293.0,2292.9,4.36128919]
[1750554275964,12.165,2293.0,2292.5,4.66]
[1750554276149,12.165,2293.0,2292.8,4.3613328]
[1750554276649,10.0,2292.6,2292.0,4.66]
[1750554276819,10.8193,2292.4,2291.7,9.02349253]
[1750554277021,10.0,2292.1,2291.8,4.36324441]
[1750554277253,2.166,2292.0,2291.9,4.36319211]
[1750554277768,10.8193,2291.9,2291.1,0.7692]
[1750554278068,10.8193,2291.9,2290.0,19.10002369]
[1750554278069,10.0,2291.7,2290.9,4.66]
[1750554278264,10.0,2291.5,2291.3,4.36418899]
[1750554278428,10.0,2291.5,2291.4,4.36414419]
[1750554278624,42.166,2291.5,2291.4,4.36414419]
[1750554278949,42.166,2291.5,2291.3,4.36433465]
[1750554278950,30.0,2291.4,2291.3,4.36433465]
[1750554280545,0.8193,2291.9,2291.8,4.36338249]
[1750554280757,2.61,2291.9,2291.8,4.36338249]
[1750554280920,10.474,2292.6,2292.3,4.36240474]
[1750554281120,0.8226,2292.5,2292.4,4.36224044]
[1750554281333,2.166,2292.5,2292.4,4.36224044]
[1750554282134,2.166,2292.5,2292.4,5.31095496]
[1750554282352,2.166,2292.5,2292.4,4.36224044]
[1750554284636,0.7537,2293.3,2292.5,4.36204943]
[1750554284840,30.0,2293.1,2292.5,4.36204943]
[1750554285150,30.0,2293.0,2292.9,4.36119889]
[1750554285351,9.812,2293.2,2293.1,4.36090881]
[1750554285550,9.812,2293.2,2292.4,0.8058]
[1750554285786,10.91327824,2293.2,2292.8,4.3613566]
[1750554285940,9.812,2293.2,2293.0,4.36092716]
[1750554286637,9.812,2293.2,2292.5,4.66]
[1750554286839,9.812,2293.2,2292.4,5.16801872]
[1750554286840,9.812,2293.2,2292.9,4.36122451]
[1750554287037,9.812,2293.2,2293.0,4.36109189]
[1750554287373,10.91326515,2293.2,2293.0,4.36109189]
[1750554287882,10.91326515,2293.2,2292.9,4.36123566]
[1750554288074,50.0,2293.0,2292.4,4.66]
[1750554288383,10.0,2292.8,2292.7,4.36166964]
[1750554289079,10.0,2292.8,2292.5,4.36204536]
[1750554289282,10.0,2292.6,2292.5,4.36204536]
[1750554289779,2.161,2292.7,2292.6,4.36185989]
[1750554290465,7.643,2293.2,2293.0,4.36103663]
[1750554290673,30.0,2293.0,2292.8,4.66]
[1750554290869,17.643,2292.9,2292.8,4.66]
[1750554291077,20.13496137,2292.9,2292.8,4.66]
[1750554291384,17.643,2292.9,2292.8,9.02147941]
[1750554291802,10.0,2293.5,2293.3,4.36052849]
[1750554291958,12.161,2293.5,2293.4,4.36033836]
[1750554292171,2.161,2293.5,2293.4,4.36033836]
[1750554292373,2.161,2293.5,2293.4,6.47439383]
[1750554292567,2.161,2293.5,2293.4,4.36033836]
[1750554293294,5.45443001,2294.6,2293.5,4.36014824]
[1750554293476,1.09632709,2294.6,2294.5,5.16414798]
[1750554294562,1.09632709,2294.6,2294.3,4.3585719]
[1750554294563,31.09632709,2294.6,2294.3,4.3585719]
[1750554294764,30.0,2294.4,2294.0,4.35909509]
[1750554295090,7.731,2294.3,2294.2,4.35881788]
[1750554295779,8.4847,2294.5,2294.4,4.35843793]
[1750554295978,9.89,2294.5,2294.4,4.35843793]
[1750554296382,2.16,2294.5,2294.4,4.35843793]
[1750554296899,1.09632709,2294.6,2294.5,4.35824798]
[1750554297106,13.25632709,2294.6,2294.5,4.35824798]
[1750554297661,3.25632709,2294.6,2294.5,5.12514798]
[1750554297968,3.25632709,2294.6,2294.5,6.07350657]
[1750554298183,2.16,2294.6,2294.5,6.07350657]
[1750554298568,1.19546461,2295.9,2294.5,1.71525859]
[1750554298789,30.0,2295.7,2295.0,4.35725255]
[1750554299010,9.887,2295.8,2295.3,4.35660376]
[1750554299011,40.0,2295.5,2295.3,4.35660376]
[1750554299171,3.9887,2295.6,2295.0,4.35725386]
[1750554299360,7.725,2295.7,2295.6,4.3561596]
[1750554299561,2.16,2295.8,2295.7,4.35596985]
[1750554299868,12.16,2295.8,2295.7,4.35596985]
[1750554300071,10.474,2296.0,2295.8,4.35568707]
[1750554300371,9.88,2295.9,2295.8,4.35568707]
[1750554300557,2.16,2295.9,2295.8,4.35568707]
[1750554300757,2.16,2295.9,2295.7,4.35585684]
[1750554300968,2.16,2295.9,2295.8,4.35578012]
[1750554301177,2.16,2295.9,2295.7,4.35588026]
[1750554301555,2.16,2295.9,2295.8,4.35578012]
[1750554302261,2.16,2295.9,2295.7,4.35596373]
[1750554302668,2.16,2295.9,2295.8,4.35578012]
[1750554303381,2.3846887,2296.5,2295.8,5.2267735]
[1750554303599,12.3846887,2296.5,2296.3,4.3548176]
[1750554303774,0.2256887,2296.5,2296.4,5.18594204]
[1750554303968,0.2256887,2296.5,2296.4,5.22948391]
[1750554304164,0.2256887,2296.5,2296.4,6.18791406]
[1750554304361,0.2256887,2296.5,2296.4,6.73791406]
[1750554304660,0.2256887,2296.5,2296.4,5.18594204]
[1750554304977,0.2256887,2296.5,2296.4,4.35464204]
[1750554305357,0.2256887,2296.5,2296.4,5.11174204]
[1750554305562,0.2256887,2296.5,2296.4,6.09736418]
[1750554306079,0.2256887,2296.5,2296.4,6.14089677]
[1750554306274,0.2256887,2296.5,2296.4,7.9184355]
[1750554307579,0.2256887,2296.5,2296.4,7.3684355]
[1750554307775,0.2256887,2296.5,2296.4,15.0704355]
[1750554308173,0.2256887,2296.5,2296.4,7.3684355]
[1750554308374,0.2256887,2296.5,2296.4,15.0704355]
[1750554308900,0.2256887,2296.5,2296.4,15.0674355]
[1750554310011,0.2256887,2296.5,2296.4,15.6174355]
[1750554312111,0.2256887,2296.5,2296.4,25.6174355]